bitfinex/quotes_SOLUSD_20251001
["timestamp","ask_amount","ask_price","bid_price","bid_amount"]
[1759308227942,12.30188313,214.75,214.67,24.33814834]
[1759308227943,15.84003147,214.75,214.67,24.33814834]
[1759308228150,3.53814834,214.73,214.64,38.9]
[1759308228358,3.53814834,214.73,214.65,3.53814834]
[1759308228763,0.66,214.74,214.66,38.82]
[1759308229152,0.66,214.74,214.66,42.35814834]
[1759308229353,4.19814834,214.74,214.66,42.35814834]
[1759308229570,4.19814834,214.74,214.63,20.8]
[1759308229571,0.66,214.74,214.63,25.45917486]
[1759308229872,3.53814834,214.73,214.65,3.53814834]
[1759308230070,3.53814834,214.71,214.62,3.53814834]
[1759308230277,3.53814834,214.69,214.6,3.53814834]
[1759308230452,3.53814834,214.67,214.59,3.53814834]
[1759308230645,3.53814834,214.67,214.6,38.74]
[1759308231046,0.66,214.68,214.6,38.74]
[1759308231261,0.66,214.68,214.6,20.8]
[1759308231556,16.30409464,214.67,214.61,38.72]
[1759308231748,19.84224298,214.67,214.61,38.72]
[1759308231958,19.84224298,214.67,214.59,24.33814834]
[1759308232173,3.53814834,214.6,214.5,13.59559401]
[1759308232473,3.53814834,214.6,214.48,5.24885995]
[1759308232474,0.66,214.59,214.48,3.53814834]
[1759308232657,3.53814834,214.58,214.44,41.00328814]
[1759308232850,0.66,214.59,214.5,3.53814834]
[1759308233174,0.66,214.63,214.54,3.53814834]
[1759308233472,4.659398,214.62,214.58,24.33814834]
[1759308233653,4.659398,214.62,214.57,3.53814834]
[1759308233854,0.69,214.67,214.55,59.5]
[1759308234163,0.69,214.76,214.62,3.53814834]
[1759308234366,0.69,214.76,214.66,20.8]
[1759308234546,0.69,214.76,214.7,3.53814834]
[1759308234744,4.22814834,214.76,214.71,38.94]
[1759308234981,0.69,214.75,214.71,38.94]
[1759308235169,3.53814834,214.76,214.67,36.34]
[1759308235359,16.29953895,214.73,214.68,38.92]
[1759308235763,16.98953895,214.73,214.67,36.34]
[1759308236075,3.53814834,214.68,214.67,36.34]
[1759308236252,0.69,214.68,214.67,36.34]
[1759308236457,0.69,214.68,214.67,75.22]
[1759308236671,4.22814834,214.68,214.67,75.22]
[1759308237356,16.30409464,214.67,214.61,36.34]
[1759308237562,16.30409464,214.67,214.62,38.84]
[1759308237563,0.69,214.66,214.62,38.84]
[1759308237749,3.53814834,214.66,214.63,38.84]
[1759308238170,4.22814834,214.66,214.63,38.84]
[1759308238546,16.30409464,214.67,214.63,38.84]
[1759308239360,8.19689513,214.65,214.64,38.78]
[1759308239566,20.53376212,214.65,214.58,36.34]
[1759308239786,20.53376212,214.65,214.59,38.74]
[1759308239958,3.53814834,214.63,214.58,36.34]
[1759308240150,3.53814834,214.63,214.59,38.7]
[1759308240652,16.30561378,214.65,214.59,38.7]
[1759308240859,19.84376212,214.65,214.59,38.7]
[1759308241270,0.69,214.64,214.58,36.34]
[1759308241468,4.659398,214.62,214.6,38.7]
[1759308241669,0.69,214.61,214.58,36.34]
[1759308241985,3.53814834,214.59,214.47,36.34]
[1759308242213,3.53814834,214.53,214.48,38.74]
[1759308242374,3.53814834,214.53,214.47,36.34]
[1759308242375,3.53814834,214.51,214.47,36.34]
[1759308242684,13.59559401,214.61,214.47,36.34]
[1759308242685,3.53814834,214.59,214.49,38.72]
[1759308242896,3.53814834,214.59,214.5,3.53814834]
[1759308243072,16.30789301,214.62,214.49,38.72]
[1759308243073,19.84604135,214.62,214.52,3.53814834]
[1759308243393,16.30789301,214.62,214.52,20.8]
[1759308243595,16.99561378,214.65,214.58,3.53814834]
[1759308243792,16.99561378,214.65,214.59,38.74]
[1759308244087,4.65874679,214.65,214.6,3.53814834]
[1759308244267,4.65874679,214.65,214.62,3.53814834]
[1759308244468,4.65766185,214.7,214.64,3.53814834]
[1759308244664,4.65766185,214.7,214.65,38.7]
[1759308244983,0.69,214.69,214.65,38.7]
[1759308245957,19.96999999,214.88,214.67,3.53814834]
[1759308246168,0.69,214.83,214.72,3.53814834]
[1759308246459,0.69,214.83,214.68,36.34]
[1759308246460,4.75614397,214.77,214.76,3.53814834]
[1759308246663,4.75614397,214.77,214.72,3.53814834]
[1759308246890,0.69,214.76,214.73,38.66]
[1759308247200,4.75614397,214.77,214.73,38.66]
[1759308247571,5.44614397,214.77,214.7,3.53814834]
[1759308247884,16.39650342,214.77,214.71,38.64]
[1759308248258,3.53814834,214.74,214.68,36.34]
[1759308248495,3.53814834,214.72,214.69,38.6]
[1759308249226,0.1,214.77,214.71,3.53814834]
[1759308249525,0.1,214.77,214.75,3.53814834]
[1759308249704,0.1,214.77,214.76,38.76]
[1759308250197,4.75614378,214.77,214.76,38.76]
[1759308250411,0.1,214.77,214.76,38.76]
[1759308250726,4.75614378,214.77,214.76,38.76]
[1759308251594,0.1,214.77,214.76,42.29814834]
[1759308252316,4.75614378,214.77,214.76,38.76]
[1759308253112,4.75614378,214.77,214.71,20.8]
[1759308253311,4.75614378,214.77,214.73,3.53814834]
[1759308253700,16.39650323,214.77,214.73,3.53814834]
[1759308254309,16.39650323,214.77,214.74,38.54]
[1759308255116,0.1,214.77,214.74,38.54]
[1759308255317,0.1,214.77,214.75,3.53814834]
[1759308256023,0.1,214.77,214.76,20.8]
[1759308256235,0.1,214.77,214.76,24.33814834]
[1759308256439,0.1,214.77,214.76,42.03814834]
[1759308256737,0.1,214.77,214.76,38.5]
[1759308256900,0.1,214.77,214.76,45.57629668]
[1759308257100,0.1,214.77,214.76,7.07629668]
[1759308257300,0.1,214.77,214.76,42.01814834]
[1759308257602,0.1,214.77,214.76,38.5]
[1759308258020,0.1,214.77,214.76,38.48]
[1759308258417,4.75614378,214.77,214.73,3.53814834]
[1759308258625,0.69,214.76,214.71,20.8]
[1759308258833,3.53814834,214.72,214.6,36.32]
[1759308259127,0.69,214.73,214.61,59.26]
[1759308259315,0.69,214.73,214.65,3.53814834]
[1759308259520,0.69,214.73,214.66,38.46]
[1759308260211,17.02029805,214.72,214.6,36.32]
[1759308260404,3.53814834,214.68,214.61,38.46]
[1759308260727,0.72,214.7,214.62,38.44]
[1759308261113,3.53814834,214.69,214.62,38.44]
[1759308262017,16.30333519,214.68,214.62,38.44]
[1759308262219,4.65809577,214.68,214.62,38.44]
[1759308262732,4.65809577,214.68,214.62,41.97814834]
[1759308263234,4.65809577,214.68,214.63,20.8]
[1759308263235,16.30333519,214.68,214.63,20.8]
[1759308263570,20.55148353,214.68,214.64,38.32]
[1759308263854,0.71,214.71,214.65,38.32]
[1759308264044,4.65766185,214.7,214.65,38.32]
[1759308264236,0.71,214.69,214.65,38.32]
[1759308264542,13.59559401,214.75,214.65,38.32]
[1759308264751,0.1,214.77,214.68,20.8]
[1759308264912,0.1,214.77,214.72,20.8]
[1759308265112,0.1,214.77,214.76,24.33814834]
[1759308265426,0.1,214.77,214.76,31.83833929]
[1759308265622,0.1,214.77,214.76,70.93833929]
[1759308265814,0.1,214.77,214.76,81.15578496]
[1759308266019,0.1,214.77,214.76,86.15646868]
[1759308266220,0.1,214.77,214.76,85.73257441]
[1759308266445,0.81,214.77,214.72,7.50019095]
[1759308266643,0.1,214.77,214.76,20.8]
[1759308266825,0.1,214.77,214.66,20.0]
[1759308267025,0.1,214.77,214.7,20.8]
[1759308267232,0.1,214.77,214.74,20.8]
[1759308267440,0.1,214.77,214.75,39.38]
[1759308267943,4.75621199,214.77,214.67,36.32]
[1759308268243,0.71,214.76,214.67,36.32]
[1759308268414,3.53814834,214.69,214.67,36.32]
[1759308268614,0.71,214.69,214.68,39.4]
[1759308268830,0.71,214.72,214.68,39.4]
[1759308269044,4.75621199,214.77,214.68,39.4]
[1759308269647,4.75618869,214.77,214.72,3.53814834]
[1759308269823,4.75618869,214.77,214.73,39.4]
[1759308270026,0.1,214.77,214.74,3.53814834]
[1759308270348,0.1,214.77,214.75,5.47685969]
[1759308270727,4.75618606,214.77,214.7,20.8]
[1759308270931,5.46618606,214.77,214.71,39.32]
[1759308271333,22.5834052,214.77,214.71,39.32]
[1759308271537,5.46620592,214.77,214.71,44.79685969]
[1759308271738,5.46620592,214.77,214.71,39.32]
[1759308271936,0.71,214.76,214.72,39.3]
[1759308272135,4.65679426,214.74,214.73,39.38]
[1759308272333,5.47685969,214.73,214.67,36.32]
[1759308272647,5.47685969,214.73,214.68,39.38]
[1759308272953,5.47685969,214.71,214.68,39.38]
[1759308273256,0.1,214.77,214.68,39.38]
[1759308273455,0.1,214.77,214.75,5.47685969]
[1759308273750,0.1,214.77,214.71,20.8]
[1759308273958,0.1,214.77,214.72,39.36]
[1759308274327,4.75620656,214.77,214.72,39.36]
[1759308274650,47.90767719,215.03,214.76,14.03]
[1759308274853,0.71,214.91,214.88,20.8]
[1759308275149,0.71,214.91,214.81,13.59559401]
[1759308275150,5.47685969,214.91,214.76,0.28432314]
[1759308275352,25.44685968,215.05,214.8,20.8]
[1759308275353,5.47685969,214.89,214.8,20.8]
[1759308275851,5.47685969,214.87,214.81,39.84]
[1759308276027,0.71,214.88,214.81,39.84]
[1759308276227,0.1,214.9,214.81,45.31685969]
[1759308276938,0.1,214.9,214.84,20.8]
[1759308277342,0.1,214.9,214.88,20.8]
[1759308277561,0.1,214.9,214.89,36.32]
[1759308277930,0.1,214.9,214.89,76.92]
[1759308278352,0.1,214.9,214.89,82.39685969]
[1759308278651,4.75332712,214.9,214.89,76.96]
[1759308278842,5.46332712,214.9,214.89,76.96]
[1759308279237,5.46332712,214.9,214.89,36.32]
[1759308279442,22.57350463,214.9,214.89,40.7]
[1759308279829,5.46332712,214.9,214.89,40.7]
[1759308280244,17.09664494,214.9,214.81,5.47685969]
[1759308280452,5.47685969,214.89,214.82,40.7]
[1759308280654,4.75332712,214.9,214.82,5.47685969]
[1759308280868,4.75332712,214.9,214.83,40.68]
[1759308281155,17.09664494,214.9,214.84,40.66]
[1759308281361,4.75332712,214.9,214.84,46.13685969]
[1759308281561,4.75332712,214.9,214.84,40.66]
[1759308281760,16.38664494,214.9,214.85,40.66]
[1759308281930,0.71,214.89,214.85,40.66]
[1759308282133,0.1,214.9,214.85,40.66]
[1759308282953,0.1,214.9,214.86,5.47685969]
[1759308283151,0.1,214.9,214.87,40.64]
[1759308283467,6.18685969,214.89,214.81,20.8]
[1759308283762,6.18685969,214.89,214.73,13.59559401]
[1759308283763,6.18685969,214.89,214.82,40.62]
[1759308283936,6.18685969,214.89,214.78,20.8]
[1759308283937,0.71,214.89,214.83,40.62]
[1759308284134,0.1,214.9,214.84,4.65462669]
[1759308284454,0.1,214.9,214.89,5.47685969]
[1759308284655,0.1,214.9,214.89,46.53685969]
[1759308284952,0.1,214.9,214.87,20.8]
[1759308285154,0.1,214.9,214.89,5.47685969]
[1759308285453,0.1,214.9,214.88,41.1]
[1759308285652,0.1,214.9,214.89,46.55685969]
[1759308285950,0.423368,214.9,214.89,41.06]
[1759308286163,0.423368,214.9,214.89,59.30913768]
[1759308286551,0.71,215.05,214.92,20.8]
[1759308286750,0.71,215.05,214.93,41.02]
[1759308286954,6.18685969,215.05,214.97,5.47685969]
[1759308287270,5.3601174,215.05,214.98,41.04]
[1759308287652,16.98532084,215.05,214.98,41.04]
[1759308287847,5.3601174,215.05,214.98,41.04]
[1759308288049,0.71,215.04,214.97,41.77685969]
[1759308288257,17.5,215.11,214.99,40.94]
[1759308288450,17.5,215.11,215.04,5.47685969]
[1759308288451,22.14883061,215.11,215.04,5.47685969]
[1759308288648,17.5,215.11,215.05,41.14]
[1759308289254,22.14879929,215.11,215.05,41.14]
[1759308289650,5.47685969,215.1,215.05,41.14]
[1759308289880,33.77076014,215.11,215.05,41.14]
[1759308290178,0.71,215.1,215.05,41.14]
[1759308290351,17.5,215.11,215.06,13.59559401]
[1759308290689,17.5,215.11,215.07,46.95685969]
[1759308290865,17.5,215.11,215.02,20.8]
[1759308291071,17.5,215.11,215.04,20.8]
[1759308291372,17.5,215.11,215.05,41.52]
[1759308291572,17.5,215.11,215.06,5.47685969]
[1759308291758,17.5,215.11,215.1,19.0724537]
[1759308291964,9.44076051,215.12,215.1,128.09677684]
[1759308292165,4.64446611,215.31,215.16,13.59559401]
[1759308292477,5.71,215.44,215.3,5.47685969]
[1759308292682,5.71,215.44,215.34,20.8]
[1759308292683,5.0,215.44,215.34,20.8]
[1759308292848,5.0,215.44,215.35,36.56]
[1759308293048,5.0,215.44,215.38,5.47685969]
[1759308293251,5.0,215.44,215.33,20.8]
[1759308293252,5.0,215.44,215.39,77.88]
[1759308293490,0.7,215.43,215.4,41.56]
[1759308293776,9.64175345,215.44,215.4,41.56]
[1759308293969,6.17685969,215.42,215.4,41.56]
[1759308294171,9.64177037,215.44,215.41,41.52]
[1759308294354,5.0,215.44,215.41,41.52]
[1759308294559,5.0,215.44,215.39,36.3]
[1759308294560,5.0,215.44,215.42,41.52]
[1759308294774,6.17685969,215.43,215.39,36.3]
[1759308295083,5.47685969,215.41,215.32,36.28]
[1759308295385,0.7,215.4,215.27,36.28]
[1759308295553,5.47685969,215.37,215.28,5.47685969]
[1759308295758,5.47685969,215.33,215.27,36.28]
[1759308295952,0.7,215.32,215.12,36.28]
[1759308296151,4.64489758,215.29,215.2,5.47685969]
[1759308296492,0.7,215.35,215.26,5.47685969]
[1759308296787,20.8,215.41,215.3,20.8]
[1759308296788,0.7,215.41,215.3,20.8]
[1759308296990,0.7,215.41,215.31,41.48]
[1759308297196,9.64171449,215.44,215.39,5.47685969]
[1759308297355,5.0,215.44,215.4,41.74]
[1759308297556,5.0,215.44,215.41,41.76]
[1759308297860,9.6418567,215.44,215.42,41.78]
[1759308298369,0.7,215.43,215.42,41.78]
[1759308298554,16.24733079,215.42,215.31,20.8]
[1759308298755,0.7,215.41,215.3,57.06]
[1759308299158,0.7,215.41,215.3,41.73685969]
[1759308299382,5.47685969,215.35,215.19,13.94343612]
[1759308299698,0.7,215.37,215.28,5.47685969]
[1759308299855,0.7,215.37,215.29,47.25685969]
[1759308300292,40.16879641,215.36,215.24,36.26]
[1759308300454,0.7,215.35,215.25,41.76]
[1759308300654,0.7,215.34,215.24,36.26]
[1759308300874,0.7,215.34,215.12,13.9473256]
[1759308300875,20.8,215.32,215.12,36.26]
[1759308301077,20.8,215.27,215.12,36.26]
[1759308301275,5.47685969,215.2,215.12,36.26]
[1759308301479,19.96999999,215.34,215.16,5.47685969]
[1759308301682,23.22186497,215.49,215.12,36.26]
[1759308301683,0.7,215.27,215.12,36.26]
[1759308301992,34.39559401,215.33,215.12,36.26]
[1759308301993,0.7,215.26,215.12,41.73685969]
[1759308302285,39.46879641,215.36,215.24,5.47685969]
[1759308302286,4.64403473,215.33,215.24,5.47685969]
[1759308302480,4.64328523,215.37,215.31,20.8]
[1759308302704,16.25121576,215.37,215.32,41.84]
[1759308302979,16.25121576,215.37,215.17,11.61869166]
[1759308302980,5.47685969,215.34,215.14,4.64813609]
[1759308303188,5.47685969,215.25,215.15,36.26]
[1759308303478,0.7,215.33,215.16,24.82]
[1759308303479,0.7,215.24,215.16,24.82]
[1759308303683,0.7,215.29,215.17,5.47685969]
[1759308303889,0.28432314,215.35,215.26,5.47685969]
[1759308303890,0.7,215.35,215.26,5.47685969]
[1759308304183,5.47685969,215.29,215.27,41.96]
[1759308304362,0.7,215.34,215.15,36.26]
[1759308304363,5.47685969,215.27,215.15,36.26]
[1759308304568,5.47685969,215.21,215.16,41.96]
[1759308304869,5.47685969,215.19,215.16,41.96]
[1759308305060,0.7,215.24,215.16,41.96]
[1759308305390,0.7,215.29,215.17,5.47685969]
[1759308305682,0.7,215.28,215.16,41.96]
[1759308306058,5.47685969,215.23,215.16,41.96]
[1759308306382,11.61485245,215.25,215.19,20.8]
[1759308306556,4.64609941,215.24,215.16,41.96]
[1759308306893,5.47685969,215.22,215.15,36.26]
[1759308307060,0.7,215.27,215.16,42.02]
[1759308307259,0.7,215.34,215.17,13.59559401]
[1759308307480,0.7,215.34,215.25,5.47685969]
[1759308307661,5.34390564,215.34,215.26,42.32]
[1759308308184,10.82076533,215.34,215.26,42.32]
[1759308308687,30.92371937,215.27,215.01,0.7]
[1759308308990,5.47685969,215.21,215.02,42.28]
[1759308309281,5.47685969,215.05,215.02,42.28]
[1759308309660,5.47685969,215.21,215.02,42.28]
[1759308309661,5.47685969,215.03,215.02,42.28]
[1759308310181,5.47685969,215.03,214.91,0.7]
[1759308310401,16.27755557,215.02,214.91,0.7]
[1759308310883,4.65073016,215.02,214.9,36.94]
[1759308311085,4.65073016,215.02,214.9,41.59328948]
[1759308311387,5.47685969,215.01,214.91,42.94]
[1759308311564,4.65001216,215.06,214.92,6.17685969]
[1759308311753,4.65001216,215.06,214.93,42.92]
[1759308311953,0.28432314,215.14,214.96,20.8]
[1759308312159,31.16122585,215.27,215.0,20.8]
[1759308312359,30.46122585,215.27,215.11,20.8]
[1759308312580,0.7,215.26,215.15,20.8]
[1759308312959,0.7,215.25,215.16,43.22]
[1759308313288,0.7,215.25,215.15,20.8]
[1759308313480,19.96999999,215.34,215.16,43.22]
[1759308313667,0.7,215.24,215.17,43.36]
[1759308313872,0.7,215.23,215.13,5.47685969]
[1759308314071,0.7,215.23,215.18,43.36]
[1759308314259,4.64640832,215.22,215.18,43.36]
[1759308314460,0.7,215.21,215.18,43.36]
[1759308314988,4.64640832,215.22,215.18,43.36]
[1759308315162,14.29559401,215.28,215.18,43.36]
[1759308315489,0.7,215.28,215.21,6.59509017]
[1759308315693,6.59509017,215.26,215.18,43.36]
[1759308315987,13.59559401,215.33,215.18,43.36]
[1759308315988,5.34417127,215.33,215.25,6.59509017]
[1759308316203,16.95425811,215.33,215.26,43.38]
[1759308316375,4.64446611,215.31,215.27,43.4]
[1759308316578,0.7,215.3,215.28,43.4]
[1759308316771,0.7,215.35,215.28,43.4]
[1759308316971,0.7,215.35,215.15,20.8]
[1759308316972,6.59509017,215.33,215.17,0.7]
[1759308317180,6.59509017,215.29,215.15,20.8]
[1759308317375,0.7,215.28,215.16,43.34]
[1759308317581,0.7,215.27,215.12,36.26]
[1759308317878,0.7,215.26,215.13,38.14]
[1759308318078,0.7,215.26,215.14,6.59509017]
[1759308318295,6.59509017,215.23,215.13,38.14]
[1759308318473,16.26091804,215.24,215.19,6.59509017]
[1759308318680,13.59559401,215.33,215.19,6.59509017]
[1759308318681,34.39559401,215.33,215.19,6.59509017]
[1759308318888,0.7,215.29,215.19,6.59509017]
[1759308319089,0.7,215.29,215.2,6.59509017]
[1759308319390,0.7,215.29,215.14,43.44]
[1759308319716,0.68,215.34,215.18,0.7]
[1759308320000,6.59509017,215.28,215.18,0.7]
[1759308320199,0.68,215.28,215.19,43.5]
[1759308320401,16.25865192,215.27,215.2,43.5]
[1759308320971,16.25865192,215.27,215.21,43.44]
[1759308321304,0.68,215.26,215.14,36.96]
[1759308321477,0.68,215.26,215.18,6.59509017]
[1759308321677,0.68,215.26,215.15,43.44]
[1759308321678,4.64532912,215.27,215.22,6.59509017]
[1759308321883,0.68,215.26,215.14,36.26]
[1759308322081,7.27509017,215.26,215.17,6.59509017]
[1759308322306,16.25865192,215.27,215.19,6.59509017]
[1759308322484,16.25865192,215.27,215.15,44.12]
[1759308322485,16.25865192,215.27,215.23,6.59509017]
[1759308322682,4.64532912,215.27,215.24,43.4]
[1759308322883,16.25412157,215.33,215.25,43.4]
[1759308323203,6.59509017,215.29,215.18,20.8]
[1759308323392,0.68,215.32,215.21,6.59509017]
[1759308323612,6.59509017,215.28,215.18,0.7]
[1759308323819,0.67,215.29,215.18,0.7]
[1759308323994,0.67,215.29,215.2,6.59509017]
[1759308324196,0.67,215.28,215.14,36.96]
[1759308324417,16.26242913,215.22,215.14,36.26]
[1759308324621,6.59509017,215.18,215.14,36.26]
[1759308324804,0.67,215.21,215.15,43.44]
[1759308325198,0.67,215.2,215.07,36.26]
[1759308325398,39.49447076,215.22,215.08,0.7]
[1759308325728,7.26509017,215.21,215.08,0.7]
[1759308325911,0.67,215.21,215.07,36.26]
[1759308326225,0.67,215.21,214.96,3.73531933]
[1759308326226,6.59509017,215.08,214.96,39.99531933]
[1759308326400,13.87991715,215.17,214.88,4.43531933]
[1759308326401,6.59509017,215.0,214.88,4.43531933]
[1759308326719,16.27831262,215.01,214.84,36.26]
[1759308326720,16.27831262,215.01,214.91,6.59509017]
[1759308327013,16.27831262,215.01,214.92,0.7]
[1759308327014,4.65094646,215.01,214.92,0.7]
[1759308327216,16.27831262,215.01,214.92,0.7]
[1759308327417,16.27604328,215.04,214.92,0.7]
[1759308327810,16.27604328,215.04,214.92,21.5]
[1759308328006,4.65029761,215.04,214.93,0.7]
[1759308328213,4.64958175,215.08,215.03,6.59509017]
[1759308328405,16.26923254,215.13,215.06,6.59509017]
[1759308328607,16.26923254,215.13,215.04,43.5]
[1759308328817,5.31817401,215.14,215.04,79.76]
[1759308329133,16.26851425,215.14,215.1,6.59509017]
[1759308329335,16.26851425,215.14,215.12,6.59509017]
[1759308329336,4.64817401,215.14,215.12,6.59509017]
[1759308329646,4.64727205,215.18,215.13,43.56]
[1759308329821,16.93545217,215.18,215.14,43.56]
[1759308330126,4.64727205,215.18,215.14,50.15509017]
[1759308330327,4.64727205,215.18,215.14,43.56]
[1759308330699,6.59509017,215.15,215.04,36.26]
[1759308330918,6.59509017,215.11,215.04,36.26]
[1759308331239,0.67,215.11,215.04,36.26]
[1759308331399,20.19068418,215.16,215.04,36.26]
[1759308331604,13.59559401,215.14,215.04,36.26]
[1759308331908,13.59559401,215.14,215.04,42.85509017]
[1759308332105,7.26509017,215.13,215.05,43.68]
[1759308332301,6.39659171,215.13,215.05,43.68]
[1759308332512,16.26998884,215.12,215.06,43.66]
[1759308332820,16.26998884,215.12,215.04,36.26]
[1759308332821,39.51283004,215.12,215.04,36.26]
[1759308333023,39.51283004,215.12,215.07,43.66]
[1759308333229,13.59559401,215.1,215.04,36.26]
[1759308333536,39.51283004,215.12,215.04,36.26]
[1759308333713,16.26998884,215.12,215.04,41.98659171]
[1759308334240,16.26998884,215.12,215.06,3.5230957]
[1759308334409,16.26998884,215.12,215.04,36.26]
[1759308334612,0.67,215.19,215.1,3.5230957]
[1759308334915,0.67,215.19,215.05,44.3]
[1759308335429,0.67,215.19,215.1,3.5230957]
[1759308335612,16.26318478,215.21,215.14,3.5230957]
[1759308335804,16.26318478,215.21,215.15,43.54]
[1759308336002,16.26318478,215.21,215.16,43.54]
[1759308336228,3.5230957,215.18,215.04,36.26]
[1759308336408,0.67,215.2,215.04,36.26]
[1759308336409,16.27074519,215.11,215.04,36.26]
[1759308336725,3.5230957,215.1,215.04,36.26]
[1759308336935,3.5230957,215.08,214.98,3.5230957]
[1759308337112,3.5230957,215.08,214.95,36.96]
[1759308337321,16.94074519,215.11,215.0,3.5230957]
[1759308337515,3.5230957,215.07,214.96,0.7]
[1759308337731,3.5230957,215.02,214.95,36.26]
[1759308337942,13.59559401,215.05,214.96,43.38]
[1759308337943,0.67,215.03,214.96,43.38]
[1759308338225,0.28432314,215.1,214.97,5.73096383]
[1759308338438,16.27452803,215.06,214.96,43.38]
[1759308338637,4.64986515,215.06,214.95,36.26]
[1759308338819,4.64986515,215.06,215.0,5.73096383]
[1759308339018,16.27452803,215.06,214.98,0.7]
[1759308339449,16.27452803,215.06,214.95,36.26]
[1759308339648,39.52385379,215.06,214.97,5.73096383]
[1759308339933,45.25481762,215.06,214.97,5.73096383]
[1759308340131,45.25481762,215.06,214.96,43.32]
[1759308340440,5.73096383,215.05,214.96,43.32]
[1759308340652,0.67,215.07,214.91,36.96]
[1759308340653,22.00700548,215.04,214.91,36.96]
[1759308340805,16.27604165,215.04,214.99,5.73096383]
[1759308341014,16.27604165,215.04,214.97,43.24]
[1759308341213,22.00700548,215.04,214.97,43.24]
[1759308341433,16.27604165,215.04,214.97,43.24]
[1759308341746,39.52752974,215.04,214.97,43.24]
[1759308341936,39.52752974,215.04,214.98,5.73096383]
[1759308342434,5.08059582,215.38,214.97,43.24]
[1759308342435,0.67,215.13,215.03,5.73096383]
[1759308342634,16.26998884,215.12,214.99,0.7]
[1759308342840,39.51283004,215.12,215.04,5.73096383]
[1759308343021,39.51283004,215.12,215.05,43.08]
[1759308343022,0.67,215.11,215.05,43.08]
[1759308343226,39.51283004,215.12,215.06,43.08]
[1759308343422,6.40096383,215.11,215.07,43.08]
[1759308343728,39.51283004,215.12,215.08,43.06]
[1759308344041,5.73096383,215.09,215.01,5.73096383]
[1759308344235,0.67,215.11,215.02,43.02]
[1759308344456,0.67,215.11,214.96,0.7]
[1759308344457,0.67,215.11,215.03,48.75096383]
[1759308344612,13.6430498,215.23,215.03,43.02]
[1759308344816,6.40096383,215.2,215.06,20.8]
[1759308345034,5.73096383,215.14,215.07,48.99096383]
[1759308345224,13.59559401,215.15,215.04,0.7]
[1759308345441,5.73096383,215.11,215.0,0.7]
[1759308345753,0.67,215.12,215.05,43.24]
[1759308345949,0.67,215.12,215.03,5.73096383]
[1759308346239,0.67,215.15,215.07,5.73096383]
[1759308346551,16.26620811,215.17,215.08,43.18]
[1759308346715,4.64748803,215.17,215.09,5.73096383]
[1759308346912,4.64748803,215.17,215.08,43.18]
[1759308347129,16.26620811,215.17,215.1,5.73096383]
[1759308347324,19.96999999,215.3,215.1,0.7]
[1759308347325,0.67,215.24,215.1,0.7]
[1759308347530,5.73096383,215.19,215.11,5.73096383]
[1759308347918,0.67,215.23,215.11,5.73096383]
[1759308348117,0.67,215.22,215.09,43.84]
[1759308348327,0.67,215.22,215.13,5.73096383]
[1759308348328,5.73096383,215.21,215.13,5.73096383]
[1759308348644,36.26,215.65,215.18,5.73096383]
[1759308348645,16.26016259,215.25,215.18,5.73096383]
[1759308348842,16.26016259,215.25,215.19,43.06]
[1759308349141,18.9107363,215.28,215.19,43.06]